[Event "LTU-ch Men 2019"]
[Site "Vilnius"]
[Date "2019.03.17"]
[Round "5.6"]
[White "Zaksaite, Salomeja"]
[Black "Zilakauskis, Steponas"]
[Result "1-0"]
[ECO "C15"]
[WhiteElo "2260"]
[BlackElo "1679"]
[Annotator "NA RC"]
[PlyCount "59"]
[EventDate "2019.??.??"]
[EventCountry "LTU"]
[SourceTitle "playchess.com"]
[Source "ChessBase"]
[SourceQuality "1"]
[TimeControl "5400+30"]

{[%evp 22,59,196,32767,204,189,32767,32767,204,198,218,209,228,225,324,32767,272,322,341,331,337,318,408,440,525,547,1219,602,32767,1058,943,1268,2356,3057,32767,32767,32767,706,29990,29991]} 1. e4 {[%emt 0:00:00]} e6 {[%emt 0:00:00]} 2. d4 {[%emt 0:00:00]} d5 {[%emt 0:00:00]} 3. Nc3 {[%emt 0:00:00]} Bb4 {[%emt 0:00:00]} 4. Nge2 {[%emt 0:01:01]} Nc6 {[%emt 0:00:37]} 5. e5 {[%emt 0:00:32]} f6 {[%emt 0:00:11]} 6. Nf4 {[%emt 0:02:19] C15: French: 3 Nc3 Bb4: Unusual White 4th moves} Qe7 {[%emt 0:00:21]} 7. Bb5 {[%emt 0:03:15]} Bd7 $146 {[%emt 0:04:50]} ({Predecessor:} 7... fxe5 8. Bxc6+ bxc6 9. Qh5+ Qf7 10. Qxf7+ Kxf7 11. dxe5 Ba6 12. Bd2 Bf8 13. O-O-O {1-0 (54) Saptarshi,R (2402)-Grover,S (2509) Kolkata 2012}) 8. Bxc6 {[%emt 0:01:27]} bxc6 {[%emt 0:02:19]} 9. Nd3 {[%emt 0:02:13]} c5 {[%emt 0:02:27]} 10. a3 {[%emt 0:13:08]} Ba5 {[%emt 0:10:56]} 11. Nxc5 {[%emt 0:05:27]} fxe5 {[%emt 0:00:36]} (11... Bb6 $16) 12. Qh5+ {[%emt 0:00:28]} Kf8 {[%emt 0:03:42]} 13. Qxe5 {[%emt 0:01:23]} Nf6 {[%emt 0:10:34]} 14. O-O {[%emt 0:00:34]} h6 {[%emt 0:04:26]} 15. b4 {[%emt 0:11:34]} Bb6 {[%emt 0:00:35]} 16. a4 {[%emt 0:00:07]} Bxc5 {[%emt 0:04:29]} 17. dxc5 {[%emt 0:01:42]} Be8 {[%emt 0:06:00]} 18. Ba3 {[%emt 0:01:54]} a6 {[%emt 0:01:21] [#]} 19. c6 $1 {[%emt 0:05:42]} Kg8 {[%emt 0:00:22]} 20. b5 {[%emt 0:00:45]} Qf7 {[%emt 0:00:11]} 21. Rfe1 {[%emt 0:07:30]} axb5 {[%emt 0:02:48]} 22. axb5 {[%emt 0:00:06]} Qg6 {[%emt 0:00:09]} 23. Qxc7 {[%emt 0:02:31]} Qxc2 {[%emt 0:00:08] [#]} 24. Qe5 {[%emt 0:16:30]} (24. Bf8 $142 $1 {[%mdl 512]} Kxf8 25. Rxa8 {[%mdl 64] Decoy}) 24... Ng4 {[%emt 0:04:21]} 25. Qxe6+ {[%emt 0:03:08]} Bf7 {[%emt 0:00:09]} 26. Qxg4 {[%emt 0:00:52]} Qxc3 {[%emt 0:00:16] [#]} 27. Bb2 $1 {[%emt 0:00:27] Discovered Attack} Qxb2 {[%emt 0:03:21]} 28. Rxa8+ {[%emt 0:00:11]} Kh7 {[%emt 0:00:08]} 29. Rxh8+ {[%emt 0:00:18]} (29. Qf5+ $142 Bg6 30. Rxh8+ {[%mdl 64] Overworked Piece} Kxh8 31. Qxg6 Qb1 32. Qxb1 g5 33. Qg6 d4 34. Re8#) 29... Kxh8 {[%emt 0:00:04]} 30. c7 {[%emt 0:00:07]} 1-0

[Event "LTU-ch Men 2019"]
[Site "Vilnius"]
[Date "2019.03.17"]
[Round "5.11"]
[White "Jablokov, Dmitrij"]
[Black "Juknis, Paulius"]
[Result "1/2-1/2"]
[ECO "D45"]
[WhiteElo "1859"]
[BlackElo "2219"]
[Annotator "NA"]
[PlyCount "42"]
[EventDate "2019.??.??"]
[EventCountry "LTU"]
[SourceTitle "playchess.com"]
[Source "ChessBase"]
[SourceQuality "1"]
[TimeControl "5400+30"]

1. d4 {[%emt 0:00:00]} d5 {[%emt 0:00:00]} 2. c4 {[%emt 0:00:00]} c6 {[%emt 0:00:00]} 3. Nc3 {[%emt 0:00:00]} Nf6 {[%emt 0:00:08]} 4. e3 {[%emt 0:00:30]} e6 {[%emt 0:00:10]} 5. Nf3 {[%emt 0:00:04]} a6 {[%emt 0:00:07]} 6. Bd3 {[%emt 0:02:30]} dxc4 {[%emt 0:00:10]} 7. Bxc4 {[%emt 0:00:04]} b5 {[%emt 0:00:07]} 8. Bd3 {[%emt 0:00:13]} c5 {[%emt 0:00:09]} 9. dxc5 {[%emt 0:02:39]} Bxc5 {[%emt 0:00:10]} 10. O-O {[%emt 0:00:18]} Bb7 {[%emt 0:00:17]} 11. a3 {[%emt 0:00:33]} O-O {[%emt 0:03:26]} 12. b4 {[%emt 0:00:07] D37: Queen's Gambit Declined: 5 Bf4} Ba7 {[%emt 0:05:27]} 13. Bb2 {[%emt 0:07:30]} Nbd7 {[%emt 0:02:50]} 14. Qe2 {[%emt 0:00:11]} Qe7 {[%emt 0:07:25]} 15. Rfd1 {[%emt 0:01:52]} Rfd8 $146 {[%emt 0:02:06]} ({Predecessor:} 15... Rac8 16. Ng5 {0-1 (37) Olafsson,F-Hjartarson,J (2415) Reykjavik 1984}) 16. Rac1 {[%emt 0:03:26]} Rac8 {[%emt 0:05:27]} 17. Nb1 {[%emt 0:05:08]} Rxc1 {[%emt 0:07:44]} 18. Rxc1 {[%emt 0:00:50]} Bb8 {[%emt 0:01:15]} 19. Nbd2 {[%emt 0:00:41]} Qd6 {[%emt 0:07:59]} 20. Rd1 {[%emt 0:02:34]} Nf8 {[%emt 0:09:06]} 21. Nf1 {[%emt 0:00:46]} Qe7 $11 {[%emt 0:08:32]} 1/2-1/2

[Event "LTU-ch Men 2019"]
[Site "Vilnius"]
[Date "2019.03.17"]
[Round "5.12"]
[White "Stremavicius, Pijus"]
[Black "Pluta, Paulius"]
[Result "1/2-1/2"]
[ECO "B47"]
[WhiteElo "2079"]
[BlackElo "1846"]
[Annotator "NA"]
[PlyCount "56"]
[EventDate "2019.??.??"]
[EventCountry "LTU"]
[SourceTitle "playchess.com"]
[Source "ChessBase"]
[SourceQuality "1"]
[TimeControl "5400+30"]

1. Nf3 {[%emt 0:00:00]} c5 {[%emt 0:00:55]} 2. e4 {[%emt 0:00:00]} e6 {[%emt 0:00:07]} 3. d4 {[%emt 0:00:00]} cxd4 {[%emt 0:00:04]} 4. Nxd4 {[%emt 0:00:00]} Nc6 {[%emt 0:00:11]} 5. Nc3 {[%emt 0:00:00]} Qc7 {[%emt 0:00:12]} 6. Nxc6 {[%emt 0:00:48]} bxc6 {[%emt 0:00:40]} 7. Bd3 {[%emt 0:00:05]} Bb4 {[%emt 0:02:55] B47: Sicilian: Taimanov: 5 Nc3 Qc7 6 f4, 6 g3 and 6 Be2} (7... Nf6 8. O-O e5 9. Kh1 Be7 10. f4 d6 11. Qf3 Rb8 12. fxe5 dxe5 13. b3 O-O 14. Bg5 Be6 15. Nd1 Rfd8 16. Ne3 Ne8 17. Bxe7 Qxe7 {0-1 (58) Khachiyan,M (2522)-Ramirez Alvarez,A (2568) chess.com INT 2018}) 8. O-O {[%emt 0:00:12]} Ne7 $146 {[%emt 0:00:54]} ({Predecessor:} 8... Bxc3 9. bxc3 Ne7 10. Ba3 c5 11. c4 O-O 12. f4 Bb7 13. f5 Qe5 14. Rb1 Bc6 15. Bb2 {0-1 (26) Babic,M (1767)-Lee,M (1646) Melbourne 2002}) 9. Ne2 {[%emt 0:04:54]} d5 {[%emt 0:02:02]} 10. a3 {[%emt 0:00:22]} Bd6 {[%emt 0:00:21]} 11. f4 {[%emt 0:00:08]} Bc5+ {[%emt 0:03:34]} 12. Kh1 {[%emt 0:00:08]} O-O {[%emt 0:00:05]} 13. b4 {[%emt 0:01:41]} Bb6 {[%emt 0:00:04]} 14. c4 {[%emt 0:00:12]} dxc4 {[%emt 0:04:17]} 15. Bxc4 {[%emt 0:00:14]} a5 {[%emt 0:00:05]} 16. Bb2 {[%emt 0:01:09]} Ba6 {[%emt 0:03:01]} 17. Bxa6 {[%emt 0:04:59]} Rxa6 {[%emt 0:00:06]} 18. Qd3 {[%emt 0:00:09]} Qc8 {[%emt 0:04:43]} 19. f5 {[%emt 0:01:50]} exf5 {[%emt 0:01:57]} 20. exf5 {[%emt 0:01:21]} f6 {[%emt 0:00:06]} 21. Ng3 {[%emt 0:14:32]} (21. Rae1 $14) 21... axb4 {[%emt 0:04:56]} 22. Nh5 {[%emt 0:02:22]} Nd5 {[%emt 0:02:59]} 23. axb4 {[%emt 0:02:07]} Rxa1 {[%emt 0:00:09]} 24. Bxa1 {[%emt 0:00:07]} Qe8 {[%emt 0:01:21]} 25. Ng3 $17 {[%emt 0:03:57]} Nxb4 {[%emt 0:03:55]} 26. Qd6 {[%emt 0:05:54]} Nd5 {[%emt 0:03:08]} 27. Rc1 {[%emt 0:03:38]} Bc7 {[%emt 0:00:53]} 28. Qxc6 {[%emt 0:01:46]} Qxc6 {[%emt 0:00:27]} 1/2-1/2

[Event "LTU-ch Men 2019"]
[Site "Vilnius"]
[Date "2019.03.17"]
[Round "5.13"]
[White "Ketlerius, Arijus"]
[Black "Narmontas, Raimondas"]
[Result "0-1"]
[ECO "A04"]
[WhiteElo "1841"]
[BlackElo "2019"]
[Annotator "NA RC"]
[PlyCount "52"]
[EventDate "2019.??.??"]
[EventCountry "LTU"]
[SourceTitle "playchess.com"]
[Source "ChessBase"]
[SourceQuality "1"]
[TimeControl "5400+30"]

1. Nf3 {[%emt 0:00:00]} e6 {[%emt 0:00:25]} 2. c4 {[%emt 0:00:00]} f5 {[%emt 0:00:06]} 3. g3 {[%emt 0:00:04]} Nf6 {[%emt 0:00:05]} 4. Bg2 {[%emt 0:00:10]} d5 {[%emt 0:00:26]} 5. O-O {[%emt 0:00:16]} c6 {[%emt 0:00:45]} 6. b3 {[%emt 0:00:27]} Bd6 {[%emt 0:00:29]} 7. Bb2 {[%emt 0:00:12]} O-O {[%emt 0:00:36]} 8. d3 {[%emt 0:00:51]} Nbd7 {[%emt 0:00:43]} 9. Nbd2 {[%emt 0:00:28]} e5 {[%emt 0:01:36]} 10. cxd5 {[%emt 0:07:24] A10: English Opening: Unusual Replies for Black} cxd5 {[%emt 0:01:02]} 11. e4 {[%emt 0:02:42]} fxe4 {[%emt 0:05:19]} 12. dxe4 {[%emt 0:00:06]} d4 {[%emt 0:00:06]} 13. Nc4 {[%emt 0:01:24]} Qe7 {[%emt 0:02:54]} (13... Bc7 14. Ba3 Re8 15. Qe2 Nf8 16. Ne1 a5 17. Nd3 b5 {½-½ (49) Galchenko,M (2336)-Sundararajan,K (2444) Pardubice 2017}) 14. Nxd6 {[%emt 0:06:32]} Qxd6 {[%emt 0:00:14]} 15. a4 $146 {[%emt 0:01:14]} ({Predecessor:} 15. Ne1 Nc5 16. Ba3 b6 17. Nd3 Ba6 18. Bxc5 bxc5 {1-0 (35) Oginski,U (1769)-Neumann,T (2151) Berlin 2016}) 15... Nc5 {[%emt 0:11:12] [#]} 16. Nd2 {[%emt 0:14:48]} (16. Bxd4 $1 $16 {[%mdl 512]} exd4 17. e5 {[%mdl 64] Double Attack}) 16... b6 {[%emt 0:06:29] [#]} 17. Nc4 {[%emt 0:11:06]} (17. b4 $1 $16) 17... Qe6 {[%emt 0:03:48] [#]} 18. Re1 {[%emt 0:22:46]} (18. Nxe5 $1 $14 {[%mdl 512]} Qxe5 19. Bxd4) 18... Ba6 {[%emt 0:04:37] [#]} (18... Bb7 $15) 19. Bf1 $2 {[%emt 0:02:20]} (19. Nxe5 $1 $14 {[%mdl 512]} Rad8 (19... Qxe5 20. Bxd4) 20. Bxd4) 19... Nfxe4 {[%emt 0:03:12]} 20. f3 {[%emt 0:02:01] [#]} Ng5 $1 {[%emt 0:23:05]} 21. Nxe5 {[%emt 0:09:29]} (21. Rxe5 $17 Nxf3+ 22. Qxf3 Rxf3 23. Rxe6 Nxe6 24. Nd2 Rxf1+ 25. Nxf1) 21... Bxf1 {[%emt 0:00:10]} 22. Kxf1 {[%emt 0:01:38]} Rad8 $2 {[%emt 0:00:19]} (22... Nd7 23. Qe2 Nxe5) 23. f4 {[%emt 0:06:34]} Qd5 $19 {[%emt 0:00:43]} ({Not} 23... Nxb3 24. Ra3 $17) ({Worse is} 23... Qxb3 24. Qxb3+ Nxb3 25. Rad1 $11) 24. Qh5 {[%emt 0:06:42]} Qh1+ {[%emt 0:01:53]} 25. Kf2 {[%emt 0:01:32]} Nge4+ {[%emt 0:00:28]} 26. Ke2 d3+ 0-1

[Event "LTU-ch Men 2019"]
[Site "Vilnius"]
[Date "2019.03.17"]
[Round "5.14"]
[White "Greicius, Pijus"]
[Black "Indriunas, Matas"]
[Result "1/2-1/2"]
[ECO "A40"]
[WhiteElo "1589"]
[BlackElo "1908"]
[Annotator "NA RC"]
[PlyCount "44"]
[EventDate "2019.??.??"]
[EventCountry "LTU"]
[SourceTitle "playchess.com"]
[Source "ChessBase"]
[SourceQuality "1"]
[TimeControl "5400+30"]

1. d4 {[%emt 0:00:00]} g6 {[%emt 0:00:00]} 2. Bf4 {[%emt 0:00:00]} Bg7 {[%emt 0:00:00]} 3. Nf3 {[%emt 0:00:33]} d6 {[%emt 0:00:05]} 4. c3 {[%emt 0:00:56]} Nd7 {[%emt 0:00:32]} 5. h3 {[%emt 0:00:42]} e5 {[%emt 0:00:37]} 6. dxe5 {[%emt 0:07:01]} dxe5 {[%emt 0:00:15]} 7. Bh2 {[%emt 0:00:08]} Qe7 {[%emt 0:00:36]} 8. e3 {[%emt 0:00:15]} Ngf6 {[%emt 0:01:28]} 9. Be2 {[%emt 0:03:11]} O-O {[%emt 0:00:23]} 10. O-O {[%emt 0:00:41]} c6 {[%emt 0:02:57]} 11. Nbd2 {[%emt 0:04:02]} Ne8 {[%emt 0:01:47]} 12. a4 {[%emt 0:02:01]} Nc7 {[%emt 0:04:34]} 13. Qc2 {[%emt 0:03:31]} f5 {[%emt 0:08:00]} 14. Rfe1 {[%emt 0:02:21]} g5 {[%emt 0:07:26]} 15. Nc4 {[%emt 0:01:13]} h5 {[%emt 0:08:36]} 16. Rad1 {[%emt 0:12:10]} g4 {[%emt 0:16:09]} 17. hxg4 {[%emt 0:00:07]} hxg4 {[%emt 0:00:53]} 18. Nfd2 {[%emt 0:10:26]} Qg5 $18 {[%emt 0:26:27]} (18... Qe6 $14) 19. Bd3 {[%emt 0:06:38]} Kh8 {[%emt 0:05:47]} 20. Nd6 {[%emt 0:02:46]} Nc5 {[%emt 0:00:24]} 21. N2c4 {[%emt 0:02:27]} Nxd3 {[%emt 0:01:58]} 22. Qxd3 {[%emt 0:01:28]} Qe7 {[%emt 0:01:13]} 1/2-1/2

[Event "LTU-ch Men 2019"]
[Site "Vilnius"]
[Date "2019.03.18"]
[Round "6.8"]
[White "Bagvilas, Lukas"]
[Black "Eigminas, Kipras"]
[Result "0-1"]
[ECO "B25"]
[WhiteElo "1973"]
[BlackElo "2034"]
[Annotator "NA RC"]
[PlyCount "60"]
[EventDate "2019.??.??"]
[EventCountry "LTU"]
[SourceTitle "playchess.com"]
[Source "ChessBase"]
[SourceQuality "1"]
[TimeControl "5400+30"]

1. e4 {[%emt 0:00:00]} c5 {[%emt 0:00:00]} 2. Nc3 {[%emt 0:00:00]} Nc6 {[%emt 0:00:00]} 3. g3 {[%emt 0:00:00]} g6 {[%emt 0:00:00]} 4. Bg2 {[%emt 0:00:00]} Bg7 {[%emt 0:00:00]} 5. d3 {[%emt 0:00:00]} d6 {[%emt 0:00:00]} 6. f4 {[%emt 0:00:00]} e6 {[%emt 0:00:30]} 7. Nf3 {[%emt 0:00:02]} Nge7 {[%emt 0:00:04]} 8. O-O {[%emt 0:00:07]} O-O {[%emt 0:00:03]} 9. Ne2 {[%emt 0:07:33]} Rb8 {[%emt 0:01:25]} 10. c3 {[%emt 0:00:54]} b5 {[%emt 0:01:32]} 11. a3 {[%emt 0:00:46]} a5 {[%emt 0:02:05]} 12. d4 {[%emt 0:01:09]} b4 {[%emt 0:01:40]} 13. axb4 {[%emt 0:00:06]} axb4 {[%emt 0:00:16]} 14. Be3 {[%emt 0:04:16]} bxc3 {[%emt 0:05:10]} 15. bxc3 {[%emt 0:00:02]} cxd4 {[%emt 0:00:04]} 16. cxd4 {[%emt 0:00:06]} Nb4 {[%emt 0:00:03]} 17. Qd2 {[%emt 0:01:56]} Ba6 {[%emt 0:05:43]} 18. Rfb1 {[%emt 0:01:32]} Nec6 {[%emt 0:00:01]} 19. Rc1 {[%emt 0:09:27]} Na5 {[%emt 0:03:23]} 20. Rab1 {[%emt 0:07:09]} Nc4 {[%emt 0:00:34]} 21. Rxc4 {[%emt 0:12:57]} Bxc4 {[%emt 0:00:16]} 22. Rxb4 {[%emt 0:00:03]} Rxb4 {[%emt 0:00:17]} 23. Qxb4 {[%emt 0:00:05]} Bxe2 {[%emt 0:00:06]} 24. Qd2 {[%emt 0:05:14]} Bc4 {[%emt 0:01:55]} 25. Qc2 {[%emt 0:09:27]} Qc8 {[%emt 0:04:56]} 26. Bh3 {[%emt 0:00:05]} Qa6 {[%emt 0:00:19]} 27. f5 {[%emt 0:05:11]} Bd3 {[%emt 0:04:11]} 28. Qc7 {[%emt 0:00:57]} Bxe4 {[%emt 0:03:56]} 29. fxe6 {[%emt 0:00:05]} fxe6 {[%emt 0:00:33]} 30. Ne1 {[%emt 0:09:25]} Qe2 {[%emt 0:03:41]} 0-1

[Event "LTU-ch Men 2019"]
[Site "Vilnius"]
[Date "2019.03.18"]
[Round "6.14"]
[White "Mickus, Benas"]
[Black "Stremavicius, Pijus"]
[Result "0-1"]
[ECO "A41"]
[WhiteElo "1835"]
[BlackElo "2079"]
[Annotator "NA RC"]
[PlyCount "70"]
[EventDate "2019.??.??"]
[EventCountry "LTU"]
[SourceTitle "playchess.com"]
[Source "ChessBase"]
[SourceQuality "1"]
[TimeControl "5400+30"]

1. d4 {[%emt 0:00:00]} d6 {[%emt 0:00:00]} 2. Bg5 {[%emt 0:00:46]} c5 {[%emt 0:01:17]} 3. dxc5 {[%emt 0:02:03]} Qa5+ {[%emt 0:00:05]} 4. Nc3 {[%emt 0:00:38]} Qxc5 {[%emt 0:00:12]} 5. Qd2 {[%emt 0:01:30]} h6 {[%emt 0:01:46]} 6. Be3 {[%emt 0:05:17]} Qc7 {[%emt 0:00:07]} 7. O-O-O {[%emt 0:01:36]} Nf6 {[%emt 0:00:16]} 8. h3 {[%emt 0:03:47]} a6 {[%emt 0:00:46]} 9. g4 {[%emt 0:01:34]} b5 {[%emt 0:00:11]} 10. Bg2 {[%emt 0:01:55]} Bb7 {[%emt 0:01:01]} 11. Bxb7 {[%emt 0:16:30]} Qxb7 {[%emt 0:00:02]} 12. Nf3 {[%emt 0:00:10]} Nbd7 {[%emt 0:01:06]} 13. Rdg1 {[%emt 0:09:25]} Nb6 {[%emt 0:11:00]} 14. Bxb6 {[%emt 0:04:46]} Qxb6 {[%emt 0:00:08]} 15. e4 {[%emt 0:00:14]} e6 {[%emt 0:01:07]} 16. Re1 {[%emt 0:01:06]} Be7 {[%emt 0:00:55]} 17. Rhg1 {[%emt 0:03:39]} b4 {[%emt 0:03:14]} 18. Nd1 {[%emt 0:02:06]} Qc6 {[%emt 0:04:25]} 19. Nd4 {[%emt 0:02:36]} Qc5 {[%emt 0:02:39]} 20. f4 {[%emt 0:11:21]} d5 {[%emt 0:02:04]} 21. exd5 {[%emt 0:08:52]} Nxd5 {[%emt 0:00:16]} 22. Nb3 {[%emt 0:02:44]} Qc4 {[%emt 0:02:05]} 23. Rgf1 {[%emt 0:08:39]} Rc8 {[%emt 0:00:53]} 24. Kb1 {[%emt 0:01:11]} O-O {[%emt 0:02:15]} 25. Qe2 {[%emt 0:03:33]} Bh4 {[%emt 0:01:14]} 26. Qxc4 {[%emt 0:04:02]} Rxc4 {[%emt 0:00:02]} 27. Re2 {[%emt 0:02:14]} Rxf4 {[%emt 0:00:33]} 28. Rxf4 {[%emt 0:00:20]} Nxf4 {[%emt 0:00:04]} 29. Re3 {[%emt 0:00:04]} Rd8 {[%emt 0:00:10]} 30. Kc1 {[%emt 0:00:50]} Bg5 {[%emt 0:00:05]} 31. Nd2 {[%emt 0:01:13]} Nxh3 {[%emt 0:00:15]} 32. c4 {[%emt 0:00:38]} bxc3 {[%emt 0:00:15]} 33. bxc3 {[%emt 0:00:06]} Bxe3 {[%emt 0:00:06]} 34. Nxe3 {[%emt 0:00:02]} Rd3 {[%emt 0:00:15]} 35. Nd1 {[%emt 0:00:32]} f5 {[%emt 0:00:07]} 0-1

[Event "LTU-ch Men 2019"]
[Site "Vilnius"]
[Date "2019.03.19"]
[Round "7.4"]
[White "Eigminas, Kipras"]
[Black "Chocenka, Dmitrijus"]
[Result "0-1"]
[ECO "B40"]
[WhiteElo "2034"]
[BlackElo "2287"]
[Annotator "NA"]
[PlyCount "102"]
[EventDate "2019.??.??"]
[EventCountry "LTU"]
[SourceTitle "playchess.com"]
[Source "ChessBase"]
[SourceQuality "1"]
[TimeControl "5400+30"]

1. e4 {[%emt 0:00:00]} e6 {[%emt 0:00:00]} 2. d4 {[%emt 0:00:00]} c5 {[%emt 0:00:00]} 3. Nf3 {[%emt 0:00:00]} cxd4 {[%emt 0:00:00]} 4. Nxd4 {[%emt 0:00:00]} Bc5 {[%emt 0:00:00]} 5. Nb3 {[%emt 0:00:00]} Bb6 {[%emt 0:00:00]} 6. Nc3 {[%emt 0:00:00]} Ne7 {[%emt 0:00:00]} 7. Bf4 {[%emt 0:00:00]} d5 {[%emt 0:00:02]} 8. exd5 {[%emt 0:00:00]} exd5 {[%emt 0:00:07]} 9. Bd3 {[%emt 0:00:08]} Nbc6 {[%emt 0:00:54]} 10. Qh5 {[%emt 0:04:31]} Nb4 {[%emt 0:04:39]} 11. Bb5+ {[%emt 0:01:33]} Bd7 {[%emt 0:00:37]} 12. O-O-O {[%emt 0:00:03]} Nxa2+ {[%emt 0:00:30]} 13. Nxa2 {[%emt 0:01:03]} Bxb5 {[%emt 0:00:04]} 14. Nc3 {[%emt 0:02:40]} Bc6 {[%emt 0:02:00]} 15. Rhe1 {[%emt 0:00:35]} O-O {[%emt 0:00:21]} 16. Rd3 {[%emt 0:00:31]} Bc7 {[%emt 0:05:49]} 17. Bg5 {[%emt 0:01:22]} f6 {[%emt 0:02:06]} 18. Rh3 {[%emt 0:03:45]} fxg5 {[%emt 0:01:15]} 19. Qxh7+ {[%emt 0:00:02]} Kf7 {[%emt 0:00:01]} 20. Nc5 {[%emt 0:07:07]} Bf4+ {[%emt 0:03:54]} 21. Kb1 {[%emt 0:01:00]} Rh8 {[%emt 0:00:33]} 22. Qd3 {[%emt 0:02:08]} Qd6 {[%emt 0:02:00]} 23. Ne6 {[%emt 0:00:45]} Rxh3 {[%emt 0:05:08]} 24. Qxh3 {[%emt 0:00:11]} Bd7 {[%emt 0:00:14]} 25. Qh5+ {[%emt 0:01:17]} Kg8 {[%emt 0:00:11]} 26. Nxf4 {[%emt 0:03:17]} gxf4 {[%emt 0:00:17]} 27. Re5 {[%emt 0:00:32]} Rf8 {[%emt 0:03:09]} 28. Qg5 {[%emt 0:02:40]} Rf6 {[%emt 0:00:15]} 29. Nxd5 {[%emt 0:01:01]} Nxd5 {[%emt 0:00:11]} 30. Rxd5 {[%emt 0:00:02]} Qe6 {[%emt 0:00:34]} 31. Rd1 {[%emt 0:01:41]} Qf5 {[%emt 0:00:17]} 32. Qh4 {[%emt 0:00:12]} Qg4 {[%emt 0:00:06]} 33. Qxg4 {[%emt 0:00:45]} Bxg4 {[%emt 0:00:03]} 34. f3 {[%emt 0:00:37]} Bf5 {[%emt 0:00:08]} 35. Rd8+ {[%emt 0:00:06]} Kh7 {[%emt 0:00:33]} 36. g4 {[%emt 0:01:25]} Be6 {[%emt 0:01:05]} 37. h4 {[%emt 0:00:15]} Bc4 {[%emt 0:00:20]} 38. g5 {[%emt 0:00:24]} Re6 {[%emt 0:00:34]} 39. b3 {[%emt 0:00:03]} Be2 {[%emt 0:00:09]} 40. Rd4 {[%emt 0:01:15]} Bxf3 {[%emt 0:00:09]} 41. Rxf4 {[%emt 0:00:02]} Bh5 {[%emt 0:00:25]} 42. Rc4 {[%emt 0:00:49]} Rc6 {[%emt 0:01:05]} 43. Rd4 {[%emt 0:01:35]} Bg6 {[%emt 0:00:46]} 44. Rd7 {[%emt 0:00:50]} Rxc2 {[%emt 0:01:57]} 45. h5 {[%emt 0:00:05]} Be4 {[%emt 0:00:07]} 46. Ka1 {[%emt 0:00:29]} Rg2 {[%emt 0:00:38]} 47. Re7 {[%emt 0:00:04]} Bf3 {[%emt 0:00:16]} 48. Rf7 {[%emt 0:01:13]} Bxh5 {[%emt 0:01:38]} 49. Rxb7 {[%emt 0:00:01]} a6 {[%emt 0:00:33]} 50. Rb6 {[%emt 0:00:13]} Be2 {[%emt 0:00:08]} 51. Re6 {[%emt 0:00:03]} Bb5 {[%emt 0:00:07]} 0-1

[Event "LTU-ch Men 2019"]
[Site "Vilnius"]
[Date "2019.03.19"]
[Round "7.5"]
[White "Kalvaitis, Sigitas"]
[Black "Mickevicius, Juras"]
[Result "1/2-1/2"]
[ECO "B14"]
[WhiteElo "2143"]
[BlackElo "2273"]
[Annotator "ChessBase"]
[PlyCount "80"]
[EventDate "2019.??.??"]
[EventCountry "LTU"]
[SourceTitle "playchess.com"]
[Source "ChessBase"]
[SourceQuality "1"]
[TimeControl "5400+30"]

1. e4 {[%emt 0:00:01]} c6 {[%emt 0:00:00]} 2. d4 {[%emt 0:00:24]} d5 {[%emt 0:00:00]} 3. exd5 {[%emt 0:00:33]} cxd5 {[%emt 0:00:00]} 4. c4 {[%emt 0:00:15]} Nf6 {[%emt 0:00:00]} 5. Nc3 {[%emt 0:00:05]} e6 {[%emt 0:00:46]} 6. Nf3 {[%emt 0:01:48]} Be7 {[%emt 0:04:56]} 7. cxd5 {[%emt 0:00:45]} Nxd5 {[%emt 0:00:02]} 8. Bd3 {[%emt 0:00:20]} Nc6 {[%emt 0:00:34]} 9. O-O {[%emt 0:00:24]} O-O {[%emt 0:00:21]} 10. a3 {[%emt 0:02:44]} Bf6 {[%emt 0:09:39]} 11. Be3 {[%emt 0:01:41]} Nxc3 {[%emt 0:05:11]} 12. bxc3 {[%emt 0:00:04]} b6 {[%emt 0:01:18]} 13. Qc2 {[%emt 0:13:43]} g6 {[%emt 0:00:18]} 14. Rad1 {[%emt 0:05:05]} Bb7 {[%emt 0:15:43]} 15. Be4 {[%emt 0:14:09]} Qc7 {[%emt 0:03:58]} 16. c4 {[%emt 0:02:14]} Ne7 {[%emt 0:04:44]} 17. Bxb7 {[%emt 0:09:10]} Qxb7 {[%emt 0:00:04]} 18. Bg5 {[%emt 0:00:12]} Bg7 {[%emt 0:06:53]} 19. d5 {[%emt 0:04:12]} exd5 {[%emt 0:10:04]} 20. cxd5 {[%emt 0:00:18]} f6 {[%emt 0:02:00]} 21. Bh4 {[%emt 0:07:48]} Nxd5 {[%emt 0:09:18]} 22. Qe4 {[%emt 0:00:12]} Rad8 {[%emt 0:04:04]} 23. Rd3 {[%emt 0:05:26]} Qf7 {[%emt 0:02:20]} 24. Qa4 {[%emt 0:04:26]} Rc8 {[%emt 0:01:00]} 25. Qd4 {[%emt 0:03:23]} Ne7 {[%emt 0:00:39]} 26. Qa4 {[%emt 0:00:53]} Nf5 {[%emt 0:00:49]} 27. Rd7 {[%emt 0:00:37]} Qc4 {[%emt 0:01:23]} 28. Qxa7 {[%emt 0:00:46]} Ra8 {[%emt 0:00:30]} 29. Qc7 {[%emt 0:04:38]} Qxc7 {[%emt 0:00:11]} 30. Rxc7 {[%emt 0:00:03]} Rxa3 {[%emt 0:01:07]} 31. Bg3 {[%emt 0:00:05]} Nxg3 {[%emt 0:00:10]} 32. hxg3 {[%emt 0:00:04]} Raa8 {[%emt 0:04:35]} 33. Rb1 {[%emt 0:01:29]} Rfb8 {[%emt 0:01:33]} 34. Nd4 {[%emt 0:00:49]} f5 {[%emt 0:02:32]} 35. Nc6 {[%emt 0:02:06]} Re8 {[%emt 0:00:04]} 36. Rxb6 {[%emt 0:03:41]} Ra1+ {[%emt 0:02:48]} 37. Kh2 {[%emt 0:00:04]} Bf8 {[%emt 0:02:49]} 38. Rb8 {[%emt 0:01:22]} Rxb8 {[%emt 0:00:12]} 39. Nxb8 {[%emt 0:00:04]} Bd6 {[%emt 0:00:33]} 40. Rc6 {[%emt 0:01:07]} Bxb8 {[%emt 0:01:54]} 1/2-1/2